Cogmind - Beta 15 --- EXPLORER MODE // 2025.08.26 @ 20:37:13 Player: Aydz Result: Destroyed by CD-F1T(R) with Subdweller Machine Gun Performance ------------- Evolutions (0) 0 Regions Visited (3) 600 Robots Destroyed (35) 175 Value Destroyed (877) 877 Prototype IDs (0) 0 Alien Tech Used (0) 0 Bonus (7) 7 TOTAL SCORE: 1659 Bonus ------- Follower Combat Kills 7 Cogmind --------- Core Integrity 0/250 Matter 270/300 Energy 56/100 System Corruption 0% Temperature Cool (0) Movement Walking (190) Ox1 Location -10/Subcaves Parts ------- > --- POWER (1) -------- (None) > --- PROPULSION (2) --- Carbon-fiber Leg Carbon-fiber Leg > --- UTILITY (3) ------ High-capacity Storage Unit Improved Terrain Scanner Makeshift Targeting Computer > --- WEAPON (2) ------- (None) > --- INVENTORY (20) --- Light Ion Engine Light Treads Cesium-ion Thruster Advanced Visual Processing Unit Field Laser Assault Cannon Flak Cannon Grenade Launcher Datajack Mining Laser Heavy Explosive Trap Heavy Explosive Trap Peak State ------------ > --- POWER ------------ Light Deuterium Engine > --- PROPULSION ------- Wheel Wheel > --- UTILITY ---------- High-capacity Storage Unit Improved Terrain Scanner Makeshift Targeting Computer > --- WEAPON ----------- Beamcaster Assault Cannon > --- INVENTORY -------- Light Ion Engine Light Ion Engine Light Treads Light Treads Carbon-fiber Leg Carbon-fiber Leg Cesium-ion Thruster Advanced Visual Processing Unit Field Laser Barrage Gun Flak Cannon Grenade Launcher Datajack Mining Laser Heavy Explosive Trap Heavy Explosive Trap Heavy Explosive Trap Heavy Explosive Trap Heavy Explosive Trap [Rating: 22] Favorites ----------- Power Light Ion Engine Engine Light Ion Engine Propulsion Compact Wheel Treads Light Treads Leg Carbon-fiber Leg Wheel Compact Wheel Utility Targeting Computer Device Improved Terrain Scanner Storage High-capacity Storage Unit Processor Targeting Computer Weapon Light Assault Rifle Energy Gun Beamcaster Ballistic Gun Light Assault Rifle Ballistic Cannon Assault Cannon Build | -11 -10 -10 -10 ------- Run | Yrd Mat Min Sub Slots Evolved 1 | . 1 . . Power . | . . . . Propulsion . | . . . . Utility 1 | . 1 . . Weapon . | . . . . Parts Attached 27 | 9 7 4 7 Power 4 | 2 . 1 1 Engine 4 | 2 . 1 1 Core . | . . . . Reactor . | . . . . Propulsion 9 | 4 3 . 2 Treads 2 | 2 . . . Leg 2 | . . . 2 Wheel 5 | 2 3 . . Hover . | . . . . Flight . | . . . . Utility 8 | 1 4 . 3 Device 1 | . . . 1 Storage 4 | 1 2 . 1 Processor 3 | . 2 . 1 Hackware . | . . . . Protection . | . . . . Artifact . | . . . . Weapon 6 | 2 . 3 1 Energy Gun 1 | . . 1 . Energy Cannon . | . . . . Ballistic Gun 3 | 2 . . 1 Ballistic Cannon 2 | . . 2 . Launcher . | . . . . Special Weapon . | . . . . Impact Weapon . | . . . . Slashing Weapon . | . . . . Piercing Weapon . | . . . . Special Melee Weapon . | . . . . Unidentified Prototypes . | . . . . Parts Lost 7 | . . . 7 Power 2 | . . . 2 Propulsion 3 | . . . 3 Utility . | . . . . Weapon 2 | . . . 2 Highest Loss Streak 7 | . . . 7 To Critical Strikes . | . . . . Average Backups 10 | 3 7 12 13 Power 1 | . 2 2 1 Propulsion 3 | . 2 4 4 Utility 1 | 1 2 2 1 Weapon 2 | . . 2 4 Tool/Special . | . . . . Unused Backups 7 | . . . 7 Power . | . . . . Propulsion 1 | . . . 1 Utility 2 | . . . 2 Weapon 3 | . . . 3 Tool/Special 1 | . . . 1 Average Slot Usage (%) 98 | . 99 100 97 Engine 11 | . 11 12 11 Wheel 24 | . 24 25 24 Device 3 | . . . 10 Storage 11 | . 12 12 11 Processor 20 | . 24 25 12 Energy Gun 5 | . . 4 11 Ballistic Gun 16 | . 24 14 9 Ballistic Cannon 2 | . . 5 2 Peak Build Rating 22 | 7 9 19 22 Average Rating 13 | 5 8 13 21 On Entrance 8 | . 7 9 19 Naked Turns . | . . . . Heaviest Build 215 | 15 85 56 215 Greatest Support 40 | 40 32 32 40 Greatest Overweight (x) 10 | . 5 2 10 Average Overweight (x) 1 | . 1 1 2 Largest Inventory Capacity 35 | 10 25 20 35 Average Capacity 21 | 9 22 20 21 Most Carried 21 | 8 10 20 21 Average Carried 13 | 3 7 17 18 Final Capacity 20 | 10 20 20 20 Final Carried 20 | 8 10 20 12 Class Distribution -------------------- 96% | Hacker-Mutant 3% | Hauler-Mutant Dominant Class ---------------- Hacker-Mutant | -10/Materials Hacker-Mutant | -10/Mines Hacker-Mutant | -10/Subcaves Resources | -11 -10 -10 -10 ----------- Run | Yrd Mat Min Sub Matter Collected 979 | 295 169 262 253 Remotely . | . . . . Salvage Created 1171 | 123 310 188 550 Parts 81 | 12 28 9 32 Haulers Intercepted . | . . . . Recyclers Shooed 1 | 1 . . . Parts Field Recycled . | . . . . Retrieved Matter . | . . . . Parts Self-Destructed . | . . . . Prevented . | . . . . Kills | -11 -10 -10 -10 ------- Run | Yrd Mat Min Sub Combat Hostiles Destroyed 25 | . 9 4 12 Guns 21 | . 9 1 11 Cannons 4 | . . 3 1 Classes Destroyed 10 | 2 4 1 3 Worker 1 | . 1 . . Builder 1 | . . 1 . Tunneler 3 | 3 . . . Recycler 2 | 1 . 1 . Watcher 3 | . 3 . . Swarmer 6 | . 4 1 1 Grunt 8 | . 5 3 . Sentry 1 | . . . 1 Artisan 1 | . . . 1 Subdweller 10 | . . . 10 Best Kill Streak 4 | 4 2 3 2 Combat Bots Only 3 | . 2 3 2 Max Kills in Single Turn 1 | 1 1 1 1 Gunslinging . | . . . . Exploded . | . . . . Melee . | . . . . Uniques/NPCs Destroyed . | . . . . Combat | -11 -10 -10 -10 -------- Run | Yrd Mat Min Sub Hostile Shots Fired 124 | . 28 15 81 Missed 39 | . 8 8 23 Hits 85 | . 20 7 58 Projectile 85 | . 20 7 58 AOE 2 | . . . 2 Critical Strikes 1 | . . . 1 Damage Taken 982 | . 119 48 815 Core 250 | . 18 13 219 Absorbed by Shields . | . . . . Ignored by Resistances 593 | . 81 32 480 Core Remaining (%) 100 | 100 . . . Volleys Fired 108 | 6 39 11 52 Largest 2 | 2 2 2 2 Hottest 112 | 40 40 112 112 Shots Fired 216 | 12 78 22 104 Gun 201 | 12 78 8 103 Cannon 15 | . . 14 1 Launcher . | . . . . Special . | . . . . Kinetic 162 | 12 78 20 52 Thermal 54 | . . 2 52 Explosive . | . . . . Electromagnetic . | . . . . Robot Hit Streak 58 | 10 28 34 58 Robot Miss Streak 1 | . 1 . 1 Penetration Max . | . . . . Secondary Targets 1 | . 1 . . Max Gunslinging Chain 1 | . 1 . . Shots Hit Robots 157 | 10 62 18 67 Core Hits 69 | 7 28 11 23 Critical Kills . | . . . . Critical Parts Destroyed . | . . . . Critical Strikes 4 | . . 1 3 Burn 4 | . . 1 3 Melee Attacks . | . . . . Impact . | . . . . Slashing . | . . . . Piercing . | . . . . Sneak Attacks . | . . . . Combat Hostiles . | . . . . Follow-up Attacks . | . . . . Damage Inflicted 2216 | 81 496 370 1269 Guns 1911 | 81 496 90 1244 Cannons 305 | . . 280 25 Explosions . | . . . . Melee . | . . . . Ramming . | . . . . Kinetic 1428 | 81 496 327 524 Thermal 788 | . . 43 745 Explosive . | . . . . Electromagnetic . | . . . . Impact . | . . . . Slashing . | . . . . Piercing . | . . . . Highest Corruption . | . . . . Average Corruption . | . . . . Corruption Purged . | . . . . Corruption Blocked . | . . . . Overload Shots . | . . . . Overflow Damage 27 | . . 27 . Projectiles 27 | . . 27 . Explosions . | . . . . Melee . | . . . . Knockbacks 4 | . . 4 . Impact . | . . . . Kinetic 4 | . . 4 . Secondary . | . . . . Self-Inflicted Damage . | . . . . Shots . | . . . . Rammed . | . . . . Targets Rammed . | . . . . Kicked . | . . . . Crushed . | . . . . Highest Temperature 108 | . 18 108 66 Average Temperature 28 | . 9 50 23 Received Heat Transfer 330 | . 63 42 225 Siege Activations . | . . . . Martial Activations . | . . . . Shielding Activations . | . . . . Robots Disrupted . | . . . . Combat Hostiles . | . . . . Robots Corrupted . | . . . . Combat Hostiles . | . . . . Parts Fried . | . . . . Impact Corruptions . | . . . . Robots Melted . | . . . . Combat Hostiles . | . . . . Parts Melted 1 | . . 1 . Heat Transferred 1665 | . . 148 1517 Parts Sabotaged . | . . . . Parts Stolen . | . . . . Parts Stripped . | . . . . Power Chain Reactions . | . . . . Alert | -11 -10 -10 -10 ------- Run | Yrd Mat Min Sub Maximum Alert Level . | . . . . Low Security (%) 100 | 100 100 100 . Level 1 . | . . . . Level 2 . | . . . . Level 3 . | . . . . Level 4 . | . . . . Level 5 . | . . . . High Security . | . . . . Max Security . | . . . . Peak Influence 56 | 10 50 56 . Initial . | . . . . Average 5 | 1 5 4 . Influence Increases 477 | 20 286 131 40 Destroy 0b10 Robot/C 320 | . 180 100 40 Destroy 0b10 Robot/NC 50 | 20 20 10 . Destroy Leader 56 | . 36 20 . Successful Hack 20 | . 20 . . Destroy Structure 1 | . . 1 . Lose Combat Pursuer 30 | . 30 . . Influence Decreases 477 | 20 286 131 40 Time Decay 477 | 20 286 131 40 Squads Dispatched 1 | . . 1 . Investigation 1 | . . 1 . Extermination . | . . . . Reinforcement . | . . . . Assault . | . . . . Garrison . | . . . . Intercept . | . . . . Searches Triggered . | . . . . Construction Impeded . | . . . . Haulers Reinforced . | . . . . Active Scanning Responses . | . . . . Cargo Convoy Interrupts . | . . . . Stealth | -11 -10 -10 -10 --------- Run | Yrd Mat Min Sub Distress Signals 1 | . 1 . . Communications Jammed . | . . . . Distress Signals . | . . . . Times Spotted 37 | . 14 5 18 Peak Tracking Total 7 | . 3 3 7 Tactical Retreats 1 | . 1 . . Traps | -11 -10 -10 -10 ------- Run | Yrd Mat Min Sub Traps Triggered 6 | . 6 . . Indirectly . | . . . . Trap Hack Attempts . | . . . . Triggered . | . . . . Disarmed . | . . . . Reprogrammed . | . . . . Reused 1 | . . . 1 Traps Extracted . | . . . . Installed 3 | . . . 3 Triggered . | . . . . Most Traps Carried 5 | . . 5 5 Machines | -11 -10 -10 -10 ---------- Run | Yrd Mat Min Sub Machines Disabled . | . . . . Max in Single Turn . | . . . . Machines Repaired . | . . . . Machines Dismantled . | . . . . Machines Sabotaged . | . . . . Overloaded Fab Kills . | . . . . Hacking | -11 -10 -10 -10 --------- Run | Yrd Mat Min Sub Machines Accessed 11 | . 10 1 . Terminals 8 | . 8 . . Fabricators . | . . . . Repair Stations 1 | . 1 . . Recycling Units 1 | . 1 . . Scanalyzers . | . . . . Garrison Access . | . . . . Total Hacks 33 | . 32 1 . Successful 25 | . 24 1 . Failed 8 | . 8 . . Catastrophic . | . . . . Database Lockouts . | . . . . Manual 28 | . 28 . . Terminals 28 | . 28 . . Fabricators . | . . . . Repair Stations 1 | . 1 . . Recycling Units 3 | . 3 . . Scanalyzers . | . . . . Garrison Access . | . . . . Terminal Hacks 11 | . 10 1 . Robot Analysis 5 | . 5 . . Open Door 1 | . . 1 . Terminal Index 1 | . 1 . . Locate Traps 3 | . 3 . . Hauler Manifests 1 | . 1 . . Fabricator Hacks . | . . . . Repair Station Hacks . | . . . . Recycling Unit Hacks 1 | . 1 . . Retrieve Components 1 | . 1 . . Scanalyzer . | . . . . Garrison Access Hacks . | . . . . Unauthorized Hacks 13 | . 13 . . Terminals 12 | . 12 . . Botnet 7 | . 7 . . Skim 5 | . 5 . . Fabricators . | . . . . Repair Stations . | . . . . Recycling Units 1 | . 1 . . Reject 1 | . 1 . . Scanalyzers . | . . . . Garrison Access . | . . . . Data Cores Recovered . | . . . . Used . | . . . . Hacking Detections 9 | . 9 . . Full Trace Events . | . . . . Feedback Events . | . . . . Feedback Blocked . | . . . . Robot Schematics Acquired . | . . . . Robots Built . | . . . . Authchips . | . . . . Time . | . . . . Total Robot Build Rating . | . . . . Part Schematics Acquired . | . . . . Parts Built . | . . . . Authchips . | . . . . Time . | . . . . Total Part Build Rating . | . . . . Parts Repaired . | . . . . Time . | . . . . Parts Recycled . | . . . . Recycled Matter . | . . . . Retrieved Matter . | . . . . Retrieved Components 2 | . 2 . . Parts Scanalyzed . | . . . . Part Schematics Acquired . | . . . . Parts Damaged . | . . . . Bothacking | -11 -10 -10 -10 ------------ Run | Yrd Mat Min Sub Used RIF Installer . | . . . . Robots Hacked . | . . . . Non-combat . | . . . . Combat . | . . . . Robot Hacks Applied . | . . . . Relay Couplers Released . | . . . . Fabnet Peak Effective % . | . . . . Robots Rewired . | . . . . Allies Hacked . | . . . . Hacks Repelled . | . . . . Allies | -11 -10 -10 -10 -------- Run | Yrd Mat Min Sub Total Allies 1 | . . 1 . Largest Group 1 | . . 1 . Highest-Rated Group 31 | . . 31 . Highest-Rated Ally 31 | . . 31 . Total Orders . | . . . . Ally Attacks 1 | . . 1 . Total Damage 21 | . . 21 . Kills 1 | . . 1 . Allies Corrupted . | . . . . Allies Melted . | . . . . Intel | -11 -10 -10 -10 ------- Run | Yrd Mat Min Sub Active Infowar (turns) 985 | . . . 985 Terrain 985 | . . . 985 Robot Analysis Total 5 | . 5 . . Derelict Logs Recovered 2 | . . . 2 Drone Launches . | . . . . Drone Recoveries . | . . . . Exploration | -11 -10 -10 -10 ------------- Run | Yrd Mat Min Sub Turns Passed 3723 | 94 1315 1139 1175 Spaces Moved 2668 | 46 890 938 794 Core 5 | 5 . . . Treads 37 | 25 . . 12 Legs . | . . . . Wheels 2626 | 16 890 938 782 Hover . | . . . . Flight . | . . . . Fastest Speed 50 | 50 100 110 110 Average Speed 117 | 127 120 113 118 Slowest Speed 240 | 160 175 115 240 Overloaded Moves . | . . . . Propulsion Burnouts . | . . . . Robots Hopped . | . . . . Potential Cave-ins . | . . . . Cave-ins Triggered . | . . . . Exploration Rate (%) 61 | 4 94 101 47 Regions Visited 3 Branch Regions 2 Pre-discovered Areas 2 | . 1 . 1 Known Exits Taken 3 | 1 1 1 . Unknown Exits Taken . | . . . . Scrap Searched 2 | . . . 2 Spaces Dug . | . . . . Terrain Destroyed 1 | . . 1 . Melee . | . . . . Projectile 1 | . . 1 . AOE . | . . . . Terrain Rammed . | . . . . Walls Destroyed . | . . . . Machines Disabled . | . . . . Actions | -11 -10 -10 -10 --------- Run | Yrd Mat Min Sub Total 3060 | 68 1061 990 941 Wait 159 | . 108 15 36 Move 2665 | 45 889 937 794 Hop . | . . . . Pick Up 43 | 6 3 14 20 Fast Attach 22 | 8 12 . 2 Attach 8 | . 2 . 6 Detach 2 | 2 . . . Swap 16 | 1 5 8 2 Drop 34 | . 3 5 26 Fire 108 | 6 39 11 52 Melee . | . . . . Ram . | . . . . Kick . | . . . . Crush . | . . . . Escape Stasis . | . . . . Rewire . | . . . . Trap 3 | . . . 3 Miscellaneous . | . . . . Route ------- -11/Scrapyard -10/Materials (discovered 4 exits: *Mat x2 / *Min / *Sub) -10/Mines (discovered 3 exits: *Mat x2 / *Sub) -10/Subcaves (discovered 1 exit: *Mat) History --------- Turn | Location | Event 38 | -11/Scrapyard | Identified exit to Materials 38 | -11/Scrapyard | Discovered exit to Materials (range 15) 95 | -11/Scrapyard | Entered Materials 95 | -10/Materials | Evolved 1 slot: Utility x1 258 | -10/Materials | Identified exit to Mines 258 | -10/Materials | Discovered exit to Mines (range 14) 305 | -10/Materials | Build established: Hacker-Mutant 348 | -10/Materials | Learned 2 Storage zone layouts 481 | -10/Materials | Identified exit to Subcaves 518 | -10/Materials | Learned 4 Recycling zone layouts 561 | -10/Materials | Identified exit to Materials 561 | -10/Materials | Discovered exit to Materials (range 15) 563 | -10/Materials | Learned Storage stockpile data 597 | -10/Materials | Learned Storage stockpile data 759 | -10/Materials | Discovered exit to Materials (range 15) 1410 | -10/Materials | Entered Mines 1413 | -10/Mines | Received a Mining Laser from a helpful Derelict 1433 | -10/Mines | Found a hidden stash of uninstalled traps 1588 | -10/Mines | Discovered exit to Materials (range 14) 1774 | -10/Mines | Discovered exit to Materials (range 8) 2022 | -10/Mines | Met a Derelict shopkeep closing up shop 2210 | -10/Mines | Discovered exit to Subcaves (range 8) 2549 | -10/Mines | Entered Subcaves 2576 | -10/Subcaves | Disturbed a concealed Subdweller 2596 | -10/Subcaves | Learned location of Zion (-6) 2781 | -10/Subcaves | Learned 2 Materials zone layouts 3214 | -10/Subcaves | Identified exit to Materials 3214 | -10/Subcaves | Discovered exit to Materials (range 11) 3480 | -10/Subcaves | Shifting Twisted Machinery released Sub. Laser 3637 | -10/Subcaves | Core integrity fell below 50% 3680 | -10/Subcaves | A Subdweller sparked back to life 3680 | -10/Subcaves | A Subdweller sparked back to life 3687 | -10/Subcaves | Ambushed by Subdweller buried in earth 3687 | -10/Subcaves | Ambushed by Subdweller buried in earth 3691 | -10/Subcaves | Ambushed by Subdweller buried in earth 3704 | -10/Subcaves | Core integrity fell below 20% 3724 | -10/Subcaves | Destroyed by CD-F1T(R) with Subdweller Machine Gun Last Messages --------------- 03690_ Installed Heavy Explosive Trap. 03692_ H6-ZVR(R): "ARGHSUB!" 03692_ Barrage Gun destroyed. 03695_ Dropped Heavy Explosive Trap. 03696_ Lgt. Ion Engine destroyed. 03696_ Installed Heavy Explosive Trap. 03700_ ZJ-440(R) triggered Heavy Explosive Trap. 03700_ An explosion rips through the floor. 03700_ TD-P7Y(R) destroyed. 03700_ AP-L0Y(R) destroyed. 03702_ Dropped Heavy Explosive Trap. 03702_ Installed Heavy Explosive Trap. 03705_ H6-ZVR(R) affixes Scrap Shield Fragment to Scrap Shield. 03708_ ZJ-440(R) affixes Scrap Shield Fragment to Scrap Shield. 03710_ HJ-IIV(R) affixes Scrap Shield Fragment to Scrap Shield. 03714_ Beamcaster destroyed. 03715_ The unstable cave ceiling collapses. 03715_ H6-ZVR(R) affixes Scrap Shield Fragment to Scrap Shield. 03720_ The unstable cave ceiling collapses. 03722_ Lgt. Treads destroyed. Map ----- +----------------------------------------------------+ | ?????????????????????????????????????????????????? | | ?????????????????????????????????????????????????? | | ???????????????????????????????????????#?????????? | | ?????????????????????????????????????????????????? | | ?????????????????????????????????????????????????? | | ??????????????????????????? ?????????????????????? | | ??????????????????????????? ????##????#????????## | | ?????????????????????????????? ## ????????????## | | ?????????????????????????????? "" ????????????# | | ?????????????????????????????#"" "????????????## | | ?????????????????????????? ??? ?????????????## | | ???????????????????????????"??"" ???????#??????# | | ?????????????????????????????? " ###???????????## | | ?????????????????????????????## ##??????#?### | | ???????????????????###???"???# ##????????# | | ??????????????????##""### ??# #??????#?# | | ?????????????????## """ ## & #???????## | | ?????????????????# " ?# &!& #????#??# | | ????????????# "## ""??# &% #???????# | | ??????? ????# "" """""#???# && !# #??#?#?## | | ?????????????# """""" #???# *# "###?????## | | ?????????????# #???# ^ ##???#??### | | ?????? ### ###### ;;## ##????????# | | ?????? ## # # ;####?# ##????#??? | | ?????? R R #?#### #?#????#? | | ?????? @ ##### ##?#????? | | ?????? # # #### ##?????# | | ??????? ## ######## ###?### | | ???????###????## #### ### | | ???????????????## ## | | ????????????????#### *%| ## | | ???????????????????## #### " #### | | ????????????????????## ##?## !%"" #??#"" | | ?????????????????????#### #?# ="##"#??#"" | | ????????????????????????# #?# " ""##"#??## | | ????????????????????? ??# #?#""""" ####???###" | | ??????????????????????? #?#" "####????##### | | ?????????????????????? ?#"""##?????### ##? | | ????????????????????? """"##???#### ## | | ???????????????????? ## #?????##"" " | | ????????????????????########?###????????#"" """"" | | ?????????????????????????????????#????## ""##### | | ???????????????????????????????????????#" #???? | | ??????????????????????????????????????## """##???# | | ???????????????????????????????????????##""###??#" | | ????????????????????????????#???????????# "????# | | ????????????????????????????????????????#"[???# | | ?????????????????????????????????#??????? "???" | | ??????????????????????????????????????#???????"""# | | ???????????????????????????????????????#?????????" | +----------------------------------------------------+ Best States ------------- Heat Dissipation 25 Energy Generation 14 Energy Capacity 140 Matter Stores 300 Matter Capacity 300 Sight Range 16 Terrain Scan Range 16 Terrain Scan Density 10 Resistance: KI 35 Resistance: TH 35 Resistance: EX 35 Resistance: EM 35 Resistance: I 35 Resistance: S 35 Resistance: P 35 Evasion (%) 40 Targeting Accuracy 10 Recoil Reduction 2 Offensive Hacking 20 Item Schematics ----------------- None Robot Schematics ------------------ None Fabricated ------------ Nothing Repaired ---------- Nothing Alien Tech Used ----------------- None Achievements -------------- None Challenges ------------ None Game ------ Seed MetafiberPointDrivehammer Manual? 0 Play Time 00:29:56 Cumulative 59.1 hours Start 2025.08.26 @ 20:07:08 End 2025.08.26 @ 20:37:13 Sessions 1 Manual Loads 0 Difficulty Explorer Special Mode None Game No. 13 Rogue 0 Adventurer 0 Explorer 13 Win Type - Total 1 Types 0/0/1/0/0/0/0/0/0/0 Lore% 28 Gallery% 30 Achievement% 35 Wizard Run 0 Options --------- Layout 0 ASCII 0 Keyboard 0 Movement Mouse Keybinds 0 Fullscreen 2 Font 24/Terminus Map View 76x50 Zoom Use 0% Tactical HUD 1 Map Filters NONE Filters NONE Steam 1 RUN: 4effc4b7-53c4-4248-8219-d65700dcb871